fUST/lending_fUST_20250822
["ID","MTS","AMOUNT","RATE_DAILY","PERIOD"]
[380843185,1755873060218,-480.0,0.00055616,120]
[380843187,1755873060228,-480.0,0.00055616,120]
[380843189,1755873060237,-245.82,0.00055616,120]
[380843191,1755873060247,-480.0,0.00055616,120]
[380843193,1755873060257,-480.0,0.00055616,120]
[380843195,1755873060267,-480.0,0.00055616,120]
[380843197,1755873060276,-480.0,0.00055616,120]
[380843199,1755873060286,-480.0,0.00055616,120]
[380843201,1755873060296,-619.97,0.00055616,120]
[380843203,1755873060306,-480.0,0.00055616,120]
[380843205,1755873060316,-480.0,0.00055616,120]
[380843207,1755873060326,-528.93,0.00055616,120]
[380843209,1755873060336,-480.0,0.00055616,120]
[380843211,1755873060346,-480.0,0.00055616,120]
[380843213,1755873060361,-1024.56,0.00055616,120]
[380843215,1755873060373,-480.0,0.00055616,120]
[380843216,1755873060383,-480.0,0.00055616,120]
[380843218,1755873060399,-480.0,0.00055616,120]
[380843220,1755873060408,-480.0,0.00055616,120]
[380843222,1755873060420,-480.0,0.00055616,120]
[380843224,1755873060430,-480.0,0.00055616,120]
[380843226,1755873060439,-480.0,0.00055616,120]
[380843228,1755873060449,-3028.7,0.00055616,120]
[380843230,1755873060462,-1257.37,0.00055616,120]
[380843232,1755873060472,-545.17,0.00055616,120]
[380843234,1755873060482,-483.78451984,0.00055616,120]
[380843236,1755873060492,-480.0,0.00055616,120]
[380843238,1755873060502,-838.1,0.00055616,120]
[380843240,1755873060511,-480.0,0.00055616,30]
[380843242,1755873060521,-480.0,0.00055616,120]
[380843243,1755873060530,-480.0,0.00055616,120]
[380843245,1755873060540,-2617.87,0.00055616,120]
[380843247,1755873060550,-480.0,0.00055616,120]
[380843249,1755873060560,-480.0,0.00055616,120]
[380843251,1755873060570,-480.0,0.00055616,120]
[380843253,1755873060580,-611.86,0.00055616,120]
[380843255,1755873060591,-480.0,0.00055616,120]
[380843257,1755873060623,-480.0,0.00055616,120]
[380843259,1755873060632,-720.0,0.00055616,120]
[380843261,1755873060642,-480.0,0.00055616,120]
[380843263,1755873060652,-480.0,0.00055616,120]
[380843265,1755873060662,-480.0,0.00055616,120]
[380843267,1755873060672,-227.58,0.00055616,120]
[380843269,1755873060682,-573.36,0.00055616,120]
[380843271,1755873060691,-480.0,0.00055616,120]
[380843273,1755873060701,-480.0,0.00055616,120]
[380843275,1755873060711,-621.55,0.00055616,120]
[380843277,1755873060721,-480.0,0.00055616,120]
[380843279,1755873060732,-480.0,0.00055616,120]
[380843280,1755873060742,-480.0,0.00055616,120]
[380843282,1755873060751,-240.27,0.00055616,120]
[380843284,1755873060761,-358.72,0.00055616,120]
[380843286,1755873060771,-480.0,0.00055616,120]
[380843288,1755873060781,-365.14,0.00055616,120]
[380843290,1755873060790,-519.41,0.00055616,120]
[380843292,1755873060800,-480.0,0.00055616,120]
[380843294,1755873060809,-480.0,0.00055616,120]
[380843296,1755873060819,-480.0,0.00055616,120]
[380843298,1755873060829,-480.0,0.00055616,21]
[380843300,1755873060839,-480.0,0.00055616,120]
[380843302,1755873060849,-623.35,0.00055616,120]
[380843304,1755873060863,-480.0,0.00055616,120]
[380843306,1755873060873,-480.0,0.00055616,120]
[380843308,1755873060884,-480.0,0.00055616,120]
[380843310,1755873060894,-691.08,0.00055616,120]
[380843312,1755873060903,-480.0,0.00055616,120]
[380843314,1755873060912,-480.0,0.00055616,120]
[380843316,1755873060921,-480.0,0.00055616,120]
[380843318,1755873060931,-480.0,0.00055616,120]
[380843320,1755873060940,-480.0,0.00055616,120]
[380843322,1755873060951,-480.0,0.00055616,120]
[380843324,1755873060965,-480.0,0.00055616,3]
[380843326,1755873060975,-1329.37,0.00055616,120]
[380843328,1755873060984,-684.46,0.00055616,120]
[380843329,1755873060994,-282.55,0.00055616,120]
[380843331,1755873061004,-643.49,0.00055616,120]
[380843333,1755873061014,-480.0,0.00055616,120]
[380843335,1755873061023,-480.0,0.00055616,30]
[380843337,1755873061033,-480.0,0.00055616,120]
[380843339,1755873061043,-480.0,0.00055616,120]
[380843341,1755873061052,-480.0,0.00055616,120]
[380843343,1755873061062,-480.0,0.00055616,120]
[380843345,1755873061072,-796.03,0.00055616,120]
[380843347,1755873061081,-626.16,0.00055616,120]
[380843349,1755873061090,-480.0,0.00055616,120]
[380843351,1755873061099,-1121.48,0.00055616,120]
[380843352,1755873061113,-480.0,0.00055616,120]
[380843353,1755873061122,-600.44,0.00055616,120]
[380843354,1755873061131,-480.0,0.00055616,120]
[380843355,1755873061140,-480.0,0.00055616,120]
[380843356,1755873061150,-225.8,0.00055616,120]
[380843357,1755873061159,-912.67,0.00055616,120]
[380843358,1755873061168,-480.0,0.00055616,120]
[380843359,1755873061177,-1717.36,0.000557,7]
[380843360,1755873061186,-1576.53,0.00055835,120]
[380843361,1755873061196,-281.9,0.0005589,120]
[380843362,1755873061205,-480.0,0.0005589,120]
[380843363,1755873061215,-480.0,0.0005589,120]
[380843364,1755873061226,-480.0,0.0005589,120]
[380843365,1755873061235,-480.0,0.0005589,120]
[380843366,1755873061245,-160.43,0.0005589,120]
[380843367,1755873061255,-480.0,0.0005589,120]
[380843368,1755873061264,-323.05,0.0005589,120]
[380843369,1755873061274,-503.23,0.0005589,120]
[380843370,1755873061283,-480.0,0.0005589,120]
[380843371,1755873061293,-480.0,0.0005589,120]
[380843372,1755873061302,-480.0,0.0005589,120]
[380843373,1755873061312,-480.0,0.0005589,120]
[380843374,1755873061322,-480.0,0.0005589,120]
[380843375,1755873061331,-480.0,0.0005589,120]
[380843376,1755873061340,-425.67,0.0005589,120]
[380843377,1755873061349,-480.0,0.0005589,120]
[380843378,1755873061363,-314.69,0.0005589,120]
[380843379,1755873061373,-480.0,0.0005589,120]
[380843380,1755873061386,-480.0,0.0005589,120]
[380843381,1755873061395,-603.74,0.0005589,120]
[380843382,1755873061405,-180.39,0.0005589,120]
[380843383,1755873061416,-480.0,0.0005589,120]
[380843384,1755873061426,-480.0,0.0005589,120]
[380843385,1755873061435,-514.42,0.0005589,120]
[380843386,1755873061444,-480.0,0.0005589,120]
[380843387,1755873061455,-480.0,0.0005589,120]
[380843388,1755873061464,-601.8,0.0005589,120]
[380843389,1755873061474,-607.72,0.0005589,120]
[380843390,1755873061483,-291.03,0.0005589,120]
[380843391,1755873061494,-480.0,0.0005589,120]
[380843392,1755873061503,-480.0,0.0005589,120]
[380843393,1755873061512,-489.2,0.0005589,120]
[380843394,1755873061522,-480.0,0.0005589,120]
[380843395,1755873061531,-184.88,0.0005589,120]
[380843396,1755873061540,-480.0,0.0005589,120]
[380843397,1755873061550,-480.0,0.0005589,120]
[380843398,1755873061559,-480.0,0.0005589,120]
[380843399,1755873061568,-500.0,0.0005589,120]
[380843400,1755873061577,-179.30408572,0.0005589,120]
[380843401,1755873061587,-480.0,0.0005589,120]
[380843402,1755873061597,-480.0,0.0005589,120]
[380843403,1755873061611,-480.0,0.0005589,120]
[380843404,1755873061620,-287.5,0.0005589,120]
[380843405,1755873061630,-529.15,0.0005589,120]
[380843406,1755873061639,-480.0,0.0005589,120]
[380843407,1755873061649,-644.15,0.0005589,120]
[380843408,1755873061730,-480.0,0.0005589,120]
[380843409,1755873061740,-480.0,0.0005589,120]
[380843410,1755873061750,-346.64,0.0005589,120]
[380843411,1755873061759,-480.0,0.0005589,120]
[380843412,1755873061769,-480.0,0.0005589,120]
[380843413,1755873061778,-365.86,0.0005589,120]
[380843414,1755873061788,-480.0,0.0005589,120]
[380843415,1755873061797,-188.99,0.0005589,120]
[380843416,1755873061807,-619.97,0.0005589,120]
[380843417,1755873061816,-426.14,0.0005589,120]
[380843418,1755873061825,-480.0,0.0005589,120]
[380843419,1755873061835,-480.0,0.0005589,120]
[380843420,1755873061844,-1024.56,0.0005589,120]
[380843421,1755873061855,-480.0,0.0005589,120]
[380843422,1755873061864,-480.0,0.0005589,120]
[380843423,1755873061875,-304.64,0.0005589,120]
[380843424,1755873061885,-480.0,0.0005589,120]
[380843425,1755873061895,-480.0,0.0005589,120]
[380843426,1755873061904,-480.0,0.0005589,120]
[380843427,1755873061914,-480.0,0.0005589,120]
[380843428,1755873061924,-3028.7,0.0005589,120]
[380843429,1755873061934,-1257.37,0.0005589,120]
[380843430,1755873061944,-480.0,0.0005589,120]
[380843431,1755873061953,-838.1,0.0005589,120]
[380843432,1755873061963,-480.0,0.0005589,30]
[380843433,1755873061971,-519.23756245,0.0005589,120]
[380843434,1755873061981,-2617.87,0.0005589,120]
[380843435,1755873061990,-480.0,0.0005589,120]
[380843436,1755873062001,-480.0,0.0005589,120]
[380843437,1755873062011,-480.0,0.0005589,120]
[380843438,1755873062020,-480.0,0.0005589,120]
[380843439,1755873062030,-480.0,0.0005589,120]
[380843440,1755873062039,-720.0,0.0005589,120]
[380843441,1755873062048,-553.95,0.0005589,120]
[380843442,1755873062057,-480.0,0.0005589,120]
[380843443,1755873062067,-573.36,0.0005589,120]
[380843444,1755873062076,-480.0,0.0005589,120]
[380843445,1755873062085,-480.0,0.0005589,120]
[380843446,1755873062094,-480.0,0.0005589,120]
[380843447,1755873062105,-480.0,0.0005589,120]
[380843448,1755873062115,-480.0,0.0005589,120]
[380843449,1755873062125,-480.0,0.0005589,120]
[380843450,1755873062134,-519.41,0.0005589,120]
[380843451,1755873062143,-480.0,0.0005589,120]
[380843452,1755873062152,-480.0,0.0005589,120]
[380843453,1755873062161,-480.0,0.0005589,120]
[380843454,1755873062171,-480.0,0.0005589,21]
[380843455,1755873062180,-480.0,0.0005589,120]
[380843456,1755873062189,-623.35,0.0005589,120]
[380843457,1755873062198,-480.0,0.0005589,120]
[380843458,1755873062208,-480.0,0.0005589,120]
[380843459,1755873062217,-480.0,0.0005589,120]
[380843460,1755873062226,-691.08,0.0005589,120]
[380843461,1755873062235,-480.0,0.0005589,120]
[380843462,1755873062244,-542.66,0.0005589,120]
[380843463,1755873062254,-480.0,0.0005589,120]
[380843464,1755873062264,-480.0,0.0005589,120]
[380843465,1755873062274,-480.0,0.0005589,120]
[380843466,1755873062284,-480.0,0.0005589,3]
[380843467,1755873062293,-1329.37,0.0005589,120]
[380843468,1755873062303,-684.46,0.0005589,120]
[380843469,1755873062312,-643.49,0.0005589,120]
[380843470,1755873062321,-546.67,0.0005589,120]
[380843471,1755873062331,-480.0,0.0005589,30]
[380843472,1755873062340,-618.47,0.0005589,120]
[380843473,1755873062350,-480.0,0.0005589,120]
[380843474,1755873062363,-480.0,0.0005589,120]
[380843475,1755873062376,-318.66681882,0.0005589,120]
[380843476,1755873062388,-796.03,0.0005589,120]
[380843477,1755873062398,-480.0,0.0005589,120]
[380843478,1755873062407,-1121.48,0.0005589,120]
[380843479,1755873062416,-273.81,0.0005589,120]
[380843480,1755873062426,-600.44,0.0005589,120]
[380843481,1755873062437,-480.0,0.0005589,120]
[380843482,1755873062446,-480.0,0.0005589,120]
[380843483,1755873062456,-912.67,0.0005589,120]
[380843485,1755873062466,-480.0,0.0005589,120]
[380843487,1755873062475,-155.0,0.000559,120]
[380843489,1755873062484,-157.0,0.00056,120]
[380843491,1755873062494,-4318.04,0.00056,14]
[380843493,1755873062504,-250.0,0.00056,30]
[380843495,1755873062514,-160.0,0.00056103,4]
[380843497,1755873062524,-480.0,0.00056164,120]
[380843499,1755873062534,-243.21,0.00056164,120]
[380843501,1755873062543,-329.59,0.00056164,120]
[380843503,1755873062553,-480.0,0.00056164,120]
[380843505,1755873062562,-333.31,0.00056164,120]
[380843507,1755873062571,-480.0,0.00056164,120]
[380843509,1755873062581,-344.94,0.00056164,120]
[380843511,1755873062590,-624.72304532,0.00056164,120]
[380843512,1755873062600,-480.0,0.00056164,120]
[380843514,1755873062613,-480.0,0.00056164,120]
[380843516,1755873062623,-480.0,0.00056164,120]
[380843518,1755873062632,-480.0,0.00056164,120]
[380843520,1755873062642,-336.73,0.00056164,120]
[380843522,1755873062652,-480.0,0.00056164,120]
[380843524,1755873062661,-480.0,0.00056164,120]
[380843526,1755873062671,-480.0,0.00056164,120]
[380843528,1755873062680,-514.42,0.00056164,120]
[380843530,1755873062690,-331.40792219,0.00056164,120]
[380843532,1755873062699,-480.0,0.00056164,120]
[380843534,1755873062710,-607.72,0.00056164,120]
[380843536,1755873062719,-480.0,0.00056164,120]
[380843538,1755873062730,-480.0,0.00056164,120]
[380843540,1755873062740,-182.32,0.00056164,120]
[380843542,1755873062750,-480.0,0.00056164,120]
[380843544,1755873062764,-480.0,0.00056164,120]
[380843546,1755873062783,-480.0,0.00056164,120]
[380843548,1755873062808,-500.0,0.00056164,120]
[380843550,1755873062819,-480.0,0.00056164,120]
[380843552,1755873062829,-480.0,0.00056164,120]
[380843554,1755873062838,-480.0,0.00056164,120]
[380843556,1755873062848,-529.15,0.00056164,120]
[380843558,1755873062863,-237.79013519,0.00056164,120]
[380843560,1755873062873,-644.15,0.00056164,120]
[380843562,1755873062882,-480.0,0.00056164,120]
[380843564,1755873062894,-480.0,0.00056164,120]
[380843566,1755873062904,-350.51,0.00056164,120]
[380843568,1755873062913,-488.32,0.00056164,120]
[380843570,1755873062922,-619.97,0.00056164,120]
[380843572,1755873062932,-480.0,0.00056164,120]
[380843574,1755873062941,-480.0,0.00056164,120]
[380843576,1755873062951,-1024.56,0.00056164,120]
[380843578,1755873062960,-480.0,0.00056164,120]
[380843580,1755873062969,-480.0,0.00056164,120]
[380843582,1755873062979,-480.0,0.00056164,120]
[380843584,1755873062988,-480.0,0.00056164,120]
[380843586,1755873062997,-480.0,0.00056164,120]
[380843588,1755873063007,-480.0,0.00056164,120]
[380843590,1755873063021,-3028.7,0.00056164,120]
[380843592,1755873063031,-1257.37,0.00056164,120]
[380843594,1755873063040,-480.0,0.00056164,120]
[380843596,1755873063050,-838.1,0.00056164,120]
[380843598,1755873063059,-480.0,0.00056164,30]
[380843600,1755873063068,-2617.87,0.00056164,120]
[380843602,1755873063078,-480.0,0.00056164,120]
[380843604,1755873063088,-480.0,0.00056164,120]
[380843606,1755873063098,-524.10594163,0.00056164,120]
[380843608,1755873063112,-480.0,0.00056164,120]
[380843610,1755873063123,-480.0,0.00056164,120]
[380843612,1755873063133,-720.0,0.00056164,120]
[380843614,1755873063143,-480.0,0.00056164,120]
[380843616,1755873063152,-573.36,0.00056164,120]
[380843618,1755873063168,-480.0,0.00056164,120]
[380843620,1755873063177,-480.0,0.00056164,120]
[380843622,1755873063188,-303.28,0.00056164,120]
[380843624,1755873063197,-527.46,0.00056164,120]
[380843633,1755873063274,-480.0,0.00056164,120]
[380843635,1755873063284,-480.0,0.00056164,120]
[380843637,1755873063294,-519.41,0.00056164,120]
[380843639,1755873063304,-480.0,0.00056164,120]
[380843641,1755873063314,-480.0,0.00056164,120]
[380843643,1755873063324,-480.0,0.00056164,120]
[380843645,1755873063334,-480.0,0.00056164,21]
[380843647,1755873063343,-480.0,0.00056164,120]
[380843649,1755873063356,-623.35,0.00056164,120]
[380843651,1755873063366,-474.58,0.00056164,120]
[380843653,1755873063380,-480.0,0.00056164,120]
[380843655,1755873063390,-480.0,0.00056164,120]
[380843657,1755873063403,-691.08,0.00056164,120]
[380843659,1755873063415,-480.0,0.00056164,120]
[380843661,1755873063425,-506.53,0.00056164,120]
[380843663,1755873063435,-480.0,0.00056164,120]
[380843665,1755873063445,-480.0,0.00056164,120]
[380843667,1755873063455,-480.0,0.00056164,3]
[380843669,1755873063466,-1329.37,0.00056164,120]
[380843671,1755873063476,-684.46,0.00056164,120]
[380843673,1755873063486,-643.49,0.00056164,120]
[380843675,1755873063495,-480.0,0.00056164,30]
[380843677,1755873063505,-480.0,0.00056164,120]
[380843679,1755873063515,-480.0,0.00056164,120]
[380843681,1755873063524,-796.03,0.00056164,120]
[380843683,1755873063534,-480.0,0.00056164,120]
[380843685,1755873063543,-1121.48,0.00056164,120]
[380843687,1755873063553,-480.0,0.00056164,120]
[380843688,1755873063563,-480.0,0.00056164,120]
[380843690,1755873063573,-600.44,0.00056164,120]
[380843692,1755873063583,-912.67,0.00056164,120]
[380843694,1755873063592,-480.0,0.00056164,120]
[380843696,1755873063601,-1576.53,0.00056383,120]
[380843698,1755873063615,-204.84,0.00056438,120]
[380843700,1755873063625,-480.0,0.00056438,120]
[380843702,1755873063636,-480.0,0.00056438,120]
[380843704,1755873063646,-480.0,0.00056438,120]
[380843706,1755873063656,-480.0,0.00056438,120]
[380843708,1755873063667,-480.0,0.00056438,120]
[380843710,1755873063677,-480.0,0.00056438,120]
[380843712,1755873063688,-198.28,0.00056438,120]
[380843714,1755873063698,-480.0,0.00056438,120]
[380843716,1755873063708,-480.0,0.00056438,120]
[380843718,1755873063717,-514.42,0.00056438,120]
[380843720,1755873063727,-480.0,0.00056438,120]
[380843722,1755873063737,-607.72,0.00056438,120]
[380843724,1755873063746,-480.0,0.00056438,120]
[380843726,1755873063756,-480.0,0.00056438,120]
[380843728,1755873063766,-480.0,0.00056438,120]
[380843730,1755873063776,-480.0,0.00056438,120]
[380843732,1755873063786,-480.0,0.00056438,120]
[380843734,1755873063796,-500.0,0.00056438,120]
[380843736,1755873063806,-480.0,0.00056438,120]
[380843738,1755873063816,-480.0,0.00056438,120]
[380843740,1755873063826,-480.0,0.00056438,120]
[380843742,1755873063836,-529.15,0.00056438,120]
[380843744,1755873063846,-644.15,0.00056438,120]
[380843746,1755873063858,-480.0,0.00056438,120]
[380843748,1755873063868,-480.0,0.00056438,120]
[380843750,1755873063878,-619.97,0.00056438,120]
[380843752,1755873063888,-480.0,0.00056438,120]
[380843754,1755873063897,-480.0,0.00056438,120]
[380843756,1755873063907,-1024.56,0.00056438,120]
[380843758,1755873063917,-480.0,0.00056438,120]
[380843760,1755873063927,-480.0,0.00056438,120]
[380843762,1755873063938,-480.0,0.00056438,120]
[380843764,1755873063948,-245.35,0.00056438,120]
[380843766,1755873063957,-480.0,0.00056438,120]
[380843768,1755873063966,-476.42,0.00056438,120]
[380843770,1755873063976,-3028.7,0.00056438,120]
[380843772,1755873063986,-1257.37,0.00056438,120]
[380843774,1755873063995,-480.0,0.00056438,120]
[380843776,1755873064005,-838.1,0.00056438,120]
[380843778,1755873064015,-480.0,0.00056438,30]
[380843780,1755873064026,-2617.87,0.00056438,120]
[380843782,1755873064036,-480.0,0.00056438,120]
[380843784,1755873064046,-480.0,0.00056438,120]
[380843786,1755873064057,-480.0,0.00056438,120]
[380843788,1755873064067,-480.0,0.00056438,120]
[380843790,1755873064078,-720.0,0.00056438,120]
[380843792,1755873064088,-480.0,0.00056438,120]
[380843794,1755873064099,-573.36,0.00056438,120]
[380843796,1755873064113,-480.0,0.00056438,120]
[380843798,1755873064124,-480.0,0.00056438,120]
[380843800,1755873064135,-480.0,0.00056438,120]
[380843802,1755873064145,-480.0,0.00056438,120]
[380843804,1755873064155,-519.41,0.00056438,120]
[380843806,1755873064166,-480.0,0.00056438,120]
[380843808,1755873064175,-480.0,0.00056438,120]
[380843810,1755873064186,-480.0,0.00056438,120]
[380843812,1755873064196,-480.0,0.00056438,21]
[380843813,1755873064205,-480.0,0.00056438,120]
[380843814,1755873064214,-623.35,0.00056438,120]
[380843815,1755873064224,-480.0,0.00056438,120]
[380843816,1755873064234,-299.4,0.00056438,120]
[380843817,1755873064243,-691.08,0.00056438,120]
[380843818,1755873064252,-480.0,0.00056438,120]
[380843819,1755873064262,-480.0,0.00056438,120]
[380843820,1755873064272,-480.0,0.00056438,120]
[380843821,1755873064282,-480.0,0.00056438,3]
[380843822,1755873064291,-1329.37,0.00056438,120]
[380843823,1755873064301,-643.49,0.00056438,120]
[380843824,1755873064310,-684.46,0.00056438,120]
[380843827,1755873064320,-420.44,0.00056438,30]
[380843829,1755873064330,-480.0,0.00056438,120]
[380843831,1755873064341,-578.11,0.00056438,120]
[380843832,1755873064350,-796.03,0.00056438,120]
[380843834,1755873064363,-480.0,0.00056438,120]
[380843836,1755873064375,-1121.48,0.00056438,120]
[380843838,1755873064385,-480.0,0.00056438,120]
[380843840,1755873064397,-480.0,0.00056438,120]
[380843843,1755873064407,-600.44,0.00056438,120]
[380843845,1755873064417,-912.67,0.00056438,120]
[380843846,1755873064427,-480.0,0.00056712,120]
[380843848,1755873064436,-480.0,0.00056712,120]
[380843850,1755873064446,-480.0,0.00056712,120]
[380843852,1755873064455,-480.0,0.00056712,120]
[380843854,1755873064467,-392.99,0.00056712,120]
[380843857,1755873064477,-480.0,0.00056712,120]
[380843859,1755873064487,-480.0,0.00056712,120]
[380843861,1755873064497,-376.72,0.00056712,120]
[380843862,1755873064506,-514.42,0.00056712,120]
[380843864,1755873064516,-480.0,0.00056712,120]
[380843866,1755873064525,-607.72,0.00056712,120]
[380843868,1755873064535,-444.09,0.00056712,120]
[380843870,1755873064545,-480.0,0.00056712,120]
[380843872,1755873064556,-480.0,0.00056712,120]
[380843874,1755873064566,-480.0,0.00056712,120]
[380843876,1755873064576,-317.44,0.00056712,120]
[380843878,1755873064586,-500.0,0.00056712,120]
[380843880,1755873064595,-480.0,0.00056712,120]
[380843882,1755873064608,-245.71,0.00056712,120]
[380843884,1755873064617,-480.0,0.00056712,120]
[380843886,1755873064627,-529.15,0.00056712,120]
[380843888,1755873064637,-644.15,0.00056712,120]
[380843890,1755873064646,-480.0,0.00056712,120]
[380843898,1755873064656,-480.0,0.00056712,120]
[380843900,1755873064732,-619.97,0.00056712,120]
[380843903,1755873064742,-480.0,0.00056712,120]
[380843905,1755873064752,-480.0,0.00056712,120]
[380843907,1755873064762,-1024.56,0.00056712,120]
[380843909,1755873064772,-480.0,0.00056712,120]
[380843910,1755873064781,-480.0,0.00056712,120]
[380843912,1755873064791,-514.82,0.00056712,120]
[380843914,1755873064801,-480.0,0.00056712,120]
[380843916,1755873064812,-3028.7,0.00056712,120]
[380843918,1755873064821,-1257.37,0.00056712,120]
[380843921,1755873064831,-480.0,0.00056712,120]
[380843923,1755873064842,-838.1,0.00056712,120]
[380843925,1755873064851,-480.0,0.00056712,30]
[380843927,1755873064865,-2617.87,0.00056712,120]
[380843929,1755873064875,-480.0,0.00056712,120]
[380843930,1755873064885,-448.86,0.00056712,120]
[380843932,1755873064895,-480.0,0.00056712,120]
[380843934,1755873064904,-480.0,0.00056712,120]
[380843936,1755873064914,-720.0,0.00056712,120]
[380843938,1755873064923,-480.0,0.00056712,120]
[380843940,1755873064933,-573.36,0.00056712,120]
[380843942,1755873064942,-480.0,0.00056712,120]
[380843944,1755873064951,-480.0,0.00056712,120]
[380843947,1755873064960,-480.0,0.00056712,120]
[380843949,1755873064970,-480.0,0.00056712,120]
[380843951,1755873064980,-519.41,0.00056712,120]
[380843952,1755873064989,-480.0,0.00056712,120]
[380843955,1755873064999,-480.0,0.00056712,120]
[380843957,1755873065009,-480.0,0.00056712,120]
[380843959,1755873065018,-465.76,0.00056712,21]
[380843961,1755873065027,-480.0,0.00056712,120]
[380843962,1755873065036,-623.35,0.00056712,120]
[380843964,1755873065045,-480.0,0.00056712,120]
[380843966,1755873065055,-691.08,0.00056712,120]
[380843968,1755873065064,-260.82,0.00056712,120]
[380843970,1755873065073,-480.0,0.00056712,120]
[380843972,1755873065083,-282.93,0.00056712,120]
[380843974,1755873065092,-480.0,0.00056712,3]
[380843977,1755873065103,-1329.37,0.00056712,120]
[380843979,1755873065114,-643.49,0.00056712,120]
[380843980,1755873065124,-684.46,0.00056712,120]
[380843983,1755873065134,-480.0,0.00056712,120]
[380843984,1755873065143,-796.03,0.00056712,120]
[380843986,1755873065153,-480.0,0.00056712,120]
[380843988,1755873065163,-1121.48,0.00056712,120]
[380843991,1755873065172,-592.52,0.00056712,120]
[380843992,1755873065181,-480.0,0.00056712,120]
[380843995,1755873065191,-600.44,0.00056712,120]
[380843996,1755873065200,-912.67,0.00056712,120]
[380843999,1755873065210,-1576.53,0.00056931,120]
[380844001,1755873065220,-480.0,0.00056986,120]
[380844003,1755873065229,-480.0,0.00056986,120]
[380844004,1755873065238,-480.0,0.00056986,120]
[380844006,1755873065248,-480.0,0.00056986,120]
[380844008,1755873065257,-480.0,0.00056986,120]
[380844011,1755873065268,-480.0,0.00056986,120]
[380844012,1755873065278,-514.42,0.00056986,120]
[380844014,1755873065287,-153.53,0.00056986,120]
[380844015,1755873065297,-607.72,0.00056986,120]
[380844017,1755873065308,-480.0,0.00056986,120]
[380844019,1755873065318,-499.18,0.00056986,120]
[380844021,1755873065328,-480.0,0.00056986,120]
[380844023,1755873065337,-500.0,0.00056986,120]
[380844025,1755873065347,-480.0,0.00056986,120]
[380844027,1755873065361,-480.0,0.00056986,120]
[380844028,1755873065370,-529.15,0.00056986,120]
[380844029,1755873065389,-644.15,0.00056986,120]
[380844030,1755873065402,-480.0,0.00056986,120]
[380844032,1755873065411,-480.0,0.00056986,120]
[380844034,1755873065421,-619.97,0.00056986,120]
[380844036,1755873065431,-480.0,0.00056986,120]
[380844038,1755873065440,-191.95,0.00056986,120]
[380844040,1755873065449,-1024.56,0.00056986,120]
[380844042,1755873065459,-480.0,0.00056986,120]